Cogmind - Beta 15 @@@ ROGUE MODE // 2025.08.29 @ 17:42:15 Player: polar Result: Self-destructed Performance ------------- Evolutions (0) 0 Regions Visited (4) 800 Robots Destroyed (18) 90 Value Destroyed (473) 473 Prototype IDs (22) 440 Alien Tech Used (0) 0 Bonus (292) 292 TOTAL SCORE: 2095 Bonus ------- Follower Combat Kills 120 Registered with UFD 300 Friendly Fire -128 Cogmind --------- Core Integrity 92/250 Matter 240/300 Energy 90/100 System Corruption 0% Temperature Cool (0) Movement Flying (32) Location -7/Scraptown Parts ------- > --- POWER (1) -------- (None) > --- PROPULSION (2) --- VTOL Module VTOL Module > --- UTILITY (2) ------ (None) > --- WEAPON (2) ------- (None) > --- INVENTORY (5) ---- Decoy Drone Bay (16/16) Peak State ------------ > --- POWER ------------ Improved Ion Engine > --- PROPULSION ------- Spiked Treads Subdweller Monowheel > --- UTILITY ---------- Huge Storage Unit Seismic Detector > --- WEAPON ----------- Subdweller Laser Subdweller Beam Cannon > --- INVENTORY -------- Subdweller Power Source Wheel VTOL Module VTOL Module Flightbrick High-capacity Storage Unit Light Humpback Subdweller Optics Subdweller Optics Seismic Detector Scrap Shield Hacking Suite Decoy Drone Bay Subdweller Laser Subdweller Beam Cannon Improved Light Cannon Improved Light Cannon Subdweller Shrapnel Launcher Plasma Cutter [Rating: 20] Favorites ----------- Power Improved Ion Engine Engine Improved Ion Engine Propulsion Wheel Treads Light Treads Wheel Wheel Flight Unit VTOL Module Utility Seismic Detector Device Seismic Detector Storage Huge Storage Unit Weapon Improved Light Cannon Energy Gun Subdweller Laser Energy Cannon Subdweller Beam Cannon Ballistic Gun Assault Rifle Ballistic Cannon Improved Light Cannon Special Weapon Mining Laser Build | -11 -10 -10 -10 -7 ------- Run | Yrd Mat Min Sub Scr Slots Evolved . | . . . . . Power . | . . . . . Propulsion . | . . . . . Utility . | . . . . . Weapon . | . . . . . Parts Attached 34 | 7 8 4 11 4 Power 7 | 1 . 2 4 . Engine 7 | 1 . 2 4 . Core . | . . . . . Reactor . | . . . . . Propulsion 11 | 2 3 . 4 2 Treads 3 | . 2 . 1 . Leg . | . . . . . Wheel 6 | 2 1 . 3 . Hover . | . . . . . Flight 2 | . . . . 2 Utility 6 | 2 1 1 . 2 Device 3 | 1 . 1 . 1 Storage 3 | 1 1 . . 1 Processor . | . . . . . Hackware . | . . . . . Protection . | . . . . . Artifact . | . . . . . Weapon 10 | 2 4 1 3 . Energy Gun 2 | 1 . . 1 . Energy Cannon 2 | . . . 2 . Ballistic Gun 1 | 1 . . . . Ballistic Cannon 3 | . 2 1 . . Launcher . | . . . . . Special Weapon 2 | . 2 . . . Impact Weapon . | . . . . . Slashing Weapon . | . . . . . Piercing Weapon . | . . . . . Special Melee Weapon . | . . . . . Unidentified Prototypes 1 | . . . . 1 Parts Lost 3 | . . 2 1 . Power 1 | . . 1 . . Propulsion 2 | . . 1 1 . Utility . | . . . . . Weapon . | . . . . . Highest Loss Streak 2 | . . 2 1 . To Critical Strikes . | . . . . . Average Backups 18 | 2 18 24 22 8 Power 1 | . 1 2 1 . Propulsion 6 | 1 7 7 6 1 Utility 5 | . 3 5 6 4 Weapon 5 | . 5 7 6 1 Tool/Special . | . . . . . Unused Backups 24 | 1 2 1 10 10 Power . | . . . . . Propulsion 5 | 1 . . 3 1 Utility 10 | . 1 1 2 6 Weapon 9 | . 1 . 5 3 Tool/Special . | . . . . . Average Slot Usage (%) 88 | . 100 98 99 50 Engine 12 | . 14 12 14 8 Treads 10 | . 20 15 6 . Wheel 14 | . 7 12 21 17 Device 12 | . 14 13 14 8 Storage 12 | . 14 14 14 8 Energy Gun 1 | . 2 . 2 1 Energy Cannon 1 | . . . 3 1 Ballistic Cannon 17 | . 19 28 21 . Special Weapon 1 | . 4 . . . Peak Build Rating 20 | 7 13 15 20 20 Average Rating 12 | 4 10 13 16 9 On Entrance 11 | . 7 13 15 20 Naked Turns 408 | . . . . 408 Heaviest Build 100 | 15 94 96 100 100 Greatest Support 40 | 20 40 40 40 40 Greatest Overweight (x) 9 | 1 3 9 9 4 Average Overweight (x) 2 | . 2 7 4 . Largest Inventory Capacity 25 | 8 25 25 25 25 Average Capacity 22 | 5 23 25 25 17 Most Carried 25 | 4 25 25 25 25 Average Carried 20 | 2 18 24 24 12 Final Capacity 25 | 8 25 25 25 5 Final Carried 25 | 4 25 25 25 2 Class Distribution -------------------- 92% | Mutant 4% | Derelict-Mutant 3% | Sprinter Dominant Class ---------------- Mutant | -10/Materials Mutant | -10/Mines Mutant | -10/Subcaves Mutant | -7/Scraptown Resources | -11 -10 -10 -10 -7 ----------- Run | Yrd Mat Min Sub Scr Matter Collected 1294 | 279 251 288 476 . Remotely . | . . . . . Salvage Created 626 | 117 219 61 229 . Parts 36 | 5 17 2 12 . Haulers Intercepted . | . . . . . Recyclers Shooed . | . . . . . Parts Field Recycled . | . . . . . Retrieved Matter . | . . . . . Parts Self-Destructed 3 | . . . 3 . Prevented . | . . . . . Kills | -11 -10 -10 -10 -7 ------- Run | Yrd Mat Min Sub Scr Combat Hostiles Destroyed 20 | . 5 10 5 . Cannons 20 | . 5 10 5 . Classes Destroyed 12 | 2 4 2 4 . Worker 1 | . . 1 . . Tunneler 1 | 1 . . . . Recycler 1 | 1 . . . . Mechanic 1 | . 1 . . . Operator 1 | . 1 . . . Watcher 2 | . 2 . . . Grunt 5 | . 5 . . . Sentry 1 | . . . 1 . Artisan 1 | . . . 1 . Cobbler 1 | . . . 1 . Subdweller 4 | . . . 4 . Assembled 10 | . . 10 . . Thug 1 | . . . 1 . Best Kill Streak 3 | 2 3 3 1 . Combat Bots Only 3 | . 2 3 1 . Max Kills in Single Turn 2 | 1 1 2 1 . Gunslinging . | . . . . . Exploded . | . . . . . Melee . | . . . . . Uniques/NPCs Destroyed . | . . . . . Combat | -11 -10 -10 -10 -7 -------- Run | Yrd Mat Min Sub Scr Hostile Shots Fired 73 | . 10 34 29 . Missed 21 | . 3 9 9 . Hits 52 | . 7 25 20 . Projectile 52 | . 7 25 20 . Critical Strikes 1 | . . 1 . . Part Disruptions 1 | . . 1 . . Damage Taken 977 | . 76 350 551 . Core 158 | . 34 75 49 . Absorbed by Shields . | . . . . . Regen/Repaired (Parts) 10 | . 10 . . . Core Remaining (%) 100 | 100 . . . . Volleys Fired 115 | 3 46 20 46 . Largest 2 | 2 2 2 2 . Hottest 140 | 70 100 66 140 . Shots Fired 191 | 6 59 40 86 . Gun 16 | 6 7 . 3 . Cannon 149 | . 28 40 81 . Launcher . | . . . . . Special 26 | . 24 . 2 . Kinetic 145 | 3 28 40 74 . Thermal 46 | 3 31 . 12 . Explosive . | . . . . . Electromagnetic . | . . . . . Robot Hit Streak 15 | 3 5 3 15 . Robot Miss Streak 5 | 1 3 5 3 . Penetration Max . | . . . . . Secondary Targets . | . . . . . Shots Hit Robots 94 | 3 20 20 51 . Core Hits 35 | 3 10 8 14 . Critical Kills . | . . . . . Critical Parts Destroyed . | . . . . . Critical Strikes 7 | . 2 3 2 . Burn 1 | . 1 . . . Blast 6 | . 1 3 2 . Melee Attacks . | . . . . . Impact . | . . . . . Slashing . | . . . . . Piercing . | . . . . . Sneak Attacks . | . . . . . Combat Hostiles . | . . . . . Follow-up Attacks . | . . . . . Damage Inflicted 1872 | 37 429 448 958 . Guns 115 | 37 38 . 40 . Cannons 1737 | . 378 441 918 . Explosions . | . . . . . Melee . | . . . . . Ramming 20 | . 13 7 . . Kinetic 1724 | 12 378 441 893 . Thermal 128 | 25 38 . 65 . Explosive . | . . . . . Electromagnetic . | . . . . . Impact . | . . . . . Slashing . | . . . . . Piercing . | . . . . . Highest Corruption 1 | . 1 1 1 . Average Corruption 1 | . 1 1 1 . Corruption Purged . | . . . . . Corruption Blocked . | . . . . . Effects 37 | . 11 9 17 . Message Errors 8 | . 1 2 5 . Matter Fused 11 | . 5 1 5 . Heat Flow Errors 5 | . 2 1 2 . Energy Discharges 6 | . 2 . 4 . Data Loss (minor) 5 | . 1 4 . . Data Loss (major) 2 | . . 1 1 . Overload Shots . | . . . . . Overflow Damage 50 | . . 50 . . Projectiles 50 | . . 50 . . Explosions . | . . . . . Melee . | . . . . . Knockbacks 12 | . 1 4 7 . Impact . | . . . . . Kinetic 12 | . 1 4 7 . Secondary . | . . . . . Self-Inflicted Damage 3 | . . 3 . . Shots . | . . . . . Rammed 2 | . 1 1 . . Targets Rammed 2 | . 1 1 . . Kicked . | . . . . . Crushed . | . . . . . Highest Temperature 156 | 18 156 111 129 . Average Temperature 30 | 9 32 26 28 . Received Heat Transfer 267 | . 42 120 105 . Siege Activations . | . . . . . Martial Activations . | . . . . . Shielding Activations . | . . . . . Robots Disrupted . | . . . . . Combat Hostiles . | . . . . . Robots Corrupted . | . . . . . Combat Hostiles . | . . . . . Parts Fried . | . . . . . Impact Corruptions . | . . . . . Robots Melted . | . . . . . Combat Hostiles . | . . . . . Parts Melted 1 | . . . 1 . Heat Transferred 346 | 74 185 . 87 . Parts Sabotaged . | . . . . . Parts Stolen . | . . . . . Parts Stripped . | . . . . . Power Chain Reactions . | . . . . . Alert | -11 -10 -10 -10 -7 ------- Run | Yrd Mat Min Sub Scr Maximum Alert Level . | . . . . . Low Security (%) 100 | 100 100 100 . . Level 1 . | . . . . . Level 2 . | . . . . . Level 3 . | . . . . . Level 4 . | . . . . . Level 5 . | . . . . . High Security . | . . . . . Max Security . | . . . . . Peak Influence 62 | 5 62 5 . . Initial . | . . . . . Average 3 | 1 6 . . . Influence Increases 246 | 10 205 7 24 . Destroy 0b10 Robot/C 120 | . 100 . 20 . Destroy 0b10 Robot/NC 35 | 10 20 5 . . Destroy Leader 24 | . 24 . . . Allied During Kill 4 | . . . 4 . Successful Hack 11 | . 11 . . . Disable Machine 15 | . 15 . . . Destroy Structure 22 | . 20 2 . . Lose Combat Pursuer 15 | . 15 . . . Influence Decreases 246 | 10 203 9 24 . Entered New Map 2 | . . 2 . . Time Decay 244 | 10 203 7 24 . Squads Dispatched 4 | . 4 . . . Investigation 2 | . 2 . . . Extermination . | . . . . . Reinforcement 2 | . 2 . . . Assault . | . . . . . Garrison . | . . . . . Intercept . | . . . . . Searches Triggered . | . . . . . Construction Impeded . | . . . . . Haulers Reinforced . | . . . . . Active Scanning Responses . | . . . . . Cargo Convoy Interrupts . | . . . . . Stealth | -11 -10 -10 -10 -7 --------- Run | Yrd Mat Min Sub Scr Distress Signals 1 | . 1 . . . Communications Jammed . | . . . . . Distress Signals . | . . . . . Times Spotted 30 | . 11 11 8 . Peak Tracking Total 4 | . 4 4 2 . Tactical Retreats 2 | . 1 1 . . Traps | -11 -10 -10 -10 -7 ------- Run | Yrd Mat Min Sub Scr Traps Triggered 2 | . 1 . 1 . Indirectly . | . . . . . Trap Hack Attempts . | . . . . . Triggered . | . . . . . Disarmed . | . . . . . Reprogrammed . | . . . . . Reused . | . . . . . Traps Extracted . | . . . . . Installed 1 | . . . . 1 Triggered . | . . . . . Most Traps Carried 3 | . . . . 3 Machines | -11 -10 -10 -10 -7 ---------- Run | Yrd Mat Min Sub Scr Machines Disabled 2 | . 1 . 1 . Max in Single Turn 1 | . 1 . 1 . Machines Repaired . | . . . . . Machines Dismantled . | . . . . . Machines Sabotaged . | . . . . . Overloaded Fab Kills . | . . . . . Hacking | -11 -10 -10 -10 -7 --------- Run | Yrd Mat Min Sub Scr Machines Accessed 13 | . 7 1 2 3 Terminals 5 | . 5 . . . Fabricators . | . . . . . Repair Stations 1 | . 1 . . . Recycling Units 1 | . 1 . . . Scanalyzers . | . . . . . Garrison Access . | . . . . . Total Hacks 55 | . 25 1 4 25 Successful 45 | . 15 1 4 25 Failed 10 | . 10 . . . Catastrophic 2 | . 2 . . . Database Lockouts . | . . . . . Manual 18 | . 18 . . . Terminals 19 | . 19 . . . Fabricators . | . . . . . Repair Stations 2 | . 2 . . . Recycling Units 4 | . 4 . . . Scanalyzers . | . . . . . Garrison Access . | . . . . . Terminal Hacks 33 | . 3 1 4 25 Record 27 | . . . 3 24 Part Schematic 1 | . 1 . . . Robot Analysis 1 | . 1 . . . Prototype ID Bank 1 | . 1 . . . Open Door 1 | . . 1 . . Proto ID Catalog 2 | . . . 1 1 Fabricator Hacks . | . . . . . Repair Station Hacks 2 | . 2 . . . Scan Component 1 | . 1 . . . Repair 1 | . 1 . . . Recycling Unit Hacks 1 | . 1 . . . Report Inventory 1 | . 1 . . . Scanalyzer . | . . . . . Garrison Access Hacks . | . . . . . Unauthorized Hacks 9 | . 9 . . . Terminals 7 | . 7 . . . Botnet 1 | . 1 . . . Operators 1 | . 1 . . . Skim 5 | . 5 . . . Fabricators . | . . . . . Repair Stations . | . . . . . Recycling Units 2 | . 2 . . . Reject 1 | . 1 . . . Mask 1 | . 1 . . . Scanalyzers . | . . . . . Garrison Access . | . . . . . Data Cores Recovered . | . . . . . Used . | . . . . . Hacking Detections 6 | . 6 . . . Full Trace Events 1 | . 1 . . . Feedback Events 1 | . 1 . . . Corruption 1 | . 1 . . . Feedback Blocked . | . . . . . Robot Schematics Acquired . | . . . . . Robots Built . | . . . . . Authchips . | . . . . . Time . | . . . . . Total Robot Build Rating . | . . . . . Part Schematics Acquired 1 | . 1 . . . Parts Built . | . . . . . Authchips . | . . . . . Time . | . . . . . Total Part Build Rating . | . . . . . Parts Repaired 1 | . 1 . . . Time 26 | . 26 . . . Parts Recycled . | . . . . . Recycled Matter . | . . . . . Retrieved Matter . | . . . . . Retrieved Components . | . . . . . Parts Scanalyzed . | . . . . . Part Schematics Acquired . | . . . . . Parts Damaged . | . . . . . Bothacking | -11 -10 -10 -10 -7 ------------ Run | Yrd Mat Min Sub Scr Used RIF Installer . | . . . . . Robots Hacked . | . . . . . Non-combat . | . . . . . Combat . | . . . . . Robot Hacks Applied . | . . . . . Relay Couplers Released . | . . . . . Fabnet Peak Effective % . | . . . . . Robots Rewired . | . . . . . Allies Hacked . | . . . . . Hacks Repelled . | . . . . . Allies | -11 -10 -10 -10 -7 -------- Run | Yrd Mat Min Sub Scr Total Allies 3 | . . 3 . . Largest Group 3 | . . 3 3 . Highest-Rated Group 72 | . . 72 72 . Highest-Rated Ally 31 | . . 31 31 . Total Orders . | . . . . . Ally Attacks 32 | . . . 32 . Total Damage 587 | . . . 587 . Kills 4 | . . . 4 . Allies Corrupted . | . . . . . Allies Melted . | . . . . . Intel | -11 -10 -10 -10 -7 ------- Run | Yrd Mat Min Sub Scr Active Infowar (turns) 7134 | 19 1987 1560 2488 1080 Structural 1 | . . 1 . . Seismic 7133 | 19 1987 1559 2488 1080 Robot Analysis Total 1 | . 1 . . . Derelict Logs Recovered 8 | . . 2 1 5 Drone Launches . | . . . . . Drone Recoveries . | . . . . . Exploration | -11 -10 -10 -10 -7 ------------- Run | Yrd Mat Min Sub Scr Turns Passed 7857 | 71 1987 1564 2488 1747 Spaces Moved 5265 | 57 613 603 1570 2422 Core 801 | 4 . . . 797 Treads 399 | . 351 48 . . Legs . | . . . . . Wheels 3318 | 53 262 555 1570 878 Hover . | . . . . . Flight 747 | . . . . 747 Fastest Speed 32 | 50 80 175 130 32 Average Speed 127 | 78 227 212 145 70 Slowest Speed 320 | 100 320 320 215 150 Overloaded Moves . | . . . . . Propulsion Burnouts . | . . . . . Robots Hopped 2 | . . . . 2 Potential Cave-ins . | . . . . . Cave-ins Triggered . | . . . . . Exploration Rate (%) 64 | 3 81 95 54 88 Regions Visited 4 Branch Regions 3 Pre-discovered Areas 8 | . . 2 1 5 Known Exits Taken . | . . . . . Unknown Exits Taken 4 | 1 1 1 1 . Scrap Searched 11 | . . 1 9 1 Spaces Dug 21 | . 20 . 1 . Terrain Destroyed 27 | . 22 2 3 . Melee . | . . . . . Projectile 27 | . 22 2 3 . AOE . | . . . . . Terrain Rammed . | . . . . . Walls Destroyed . | . . . . . Machines Disabled . | . . . . . Actions | -11 -10 -10 -10 -7 --------- Run | Yrd Mat Min Sub Scr Total 6159 | 74 1091 846 1678 2470 Wait 622 | 1 384 208 16 13 Move 5258 | 56 612 602 1569 2419 Hop 1 | . . . . 1 Pick Up 52 | 6 27 2 11 6 Fast Attach 17 | 6 . 3 4 4 Attach 6 | 1 . 2 1 2 Detach 9 | . . 1 1 7 Swap 29 | . 16 3 10 . Drop 47 | 1 5 4 20 17 Fire 115 | 3 46 20 46 . Melee . | . . . . . Ram 1 | . . 1 . . Kick . | . . . . . Crush 1 | . 1 . . . Escape Stasis . | . . . . . Rewire . | . . . . . Trap 1 | . . . . 1 Miscellaneous . | . . . . . Route ------- -11/Scrapyard -10/Materials (discovered 5 exits: [*Mat x3] / *Min x2) -10/Mines (discovered 3 exits: [*Mat x2] / *Sub) -10/Subcaves (discovered 2 exits: [*Mat] / *Scr) -7/Scraptown (discovered 2 exits: *Fac x2) History --------- Turn | Location | Event 24 | -11/Scrapyard | Discovered new exit (range 16) 72 | -11/Scrapyard | Entered Materials 320 | -10/Materials | Build established: Mutant 382 | -10/Materials | Discovered new exit (range 12) 1161 | -10/Materials | Discovered new exit (range 16) 1253 | -10/Materials | Repaired Wheel 1780 | -10/Materials | Discovered new exit (range 9) 1904 | -10/Materials | Discovered new exit (range 6) 2013 | -10/Materials | Discovered new exit (range 6) 2059 | -10/Materials | Entered Mines 2060 | -10/Mines | Assembled infested the area 2067 | -10/Mines | Met a Derelict bent on vengeance 2642 | -10/Mines | Escorted by a lone wolf Derelict 2770 | -10/Mines | Discovered new exit (range 11) 2970 | -10/Mines | Found the Drone Emporium 2988 | -10/Mines | Found Prototype Device 3282 | -10/Mines | Learned location of Mines (-9) 3454 | -10/Mines | Discovered new exit (range 8) 3602 | -10/Mines | Discovered new exit (range 6) 3623 | -10/Mines | Entered Subcaves 3623 | -10/Subcaves | Accompanied by 3 allies 3624 | -10/Subcaves | Approached by a straggling Scientist 3628 | -10/Subcaves | Led the pair of lost Derelicts to an unsafe place 3676 | -10/Subcaves | Shifting Twisted Machinery released Mak. Light Armor Plating 3708 | -10/Subcaves | Discovered new exit (range 14) 3711 | -10/Subcaves | Scientist uncovered a shortcut to Scraptown 4045 | -10/Subcaves | Shifting Twisted Machinery released Sub. Beam Cannon 4054 | -10/Subcaves | Shifting Twisted Machinery released Shrapnel Trap 4104 | -10/Subcaves | A swath of the cavern ceiling suddenly collapsed 4672 | -10/Subcaves | A swath of the cavern ceiling suddenly collapsed 4786 | -10/Subcaves | Visited Clippyterm 4863 | -10/Subcaves | Core integrity fell below 50% 5020 | -10/Subcaves | Learned Factory emergency access door positions 5090 | -10/Subcaves | Learned location of Zion (-7) 5580 | -10/Subcaves | Shifting Twisted Machinery released Scrap Shield 5831 | -10/Subcaves | Visited 4L-MR0's lab 5852 | -10/Subcaves | Found Flightbrick 5869 | -10/Subcaves | Build established: Derelict-Mutant 6111 | -10/Subcaves | Entered Scraptown 6111 | -7/Scraptown | System corruption cleaned by C-Scrubber 6166 | -7/Scraptown | Visited Spacefarers 6178 | -7/Scraptown | Visited Cyclists 6227 | -7/Scraptown | Build established: Mutant 6234 | -7/Scraptown | Scanned Subdweller tech in exchange for log data 6237 | -7/Scraptown | Learned Factory terminal intel 6239 | -7/Scraptown | Learned Factory emergency access door positions 6240 | -7/Scraptown | Learned 8 Research zone layouts 6242 | -7/Scraptown | Learned Research emergency access door positions 6243 | -7/Scraptown | Learned 12 Factory zone layouts 6558 | -7/Scraptown | Visited TADAMA 6591 | -7/Scraptown | Visited Shadow of the Wyrm 6626 | -7/Scraptown | Visited Observation Area 6747 | -7/Scraptown | Visited Symbiants 6757 | -7/Scraptown | Visited The Evicted 6824 | -7/Scraptown | Visited UFD Registry 6824 | -7/Scraptown | Registered with UFD as "Shockshaft" 6888 | -7/Scraptown | Visited Cartography Club 6926 | -7/Scraptown | Visited Junk Repository 6949 | -7/Scraptown | Visited Chapter 10 6971 | -7/Scraptown | Visited Science Guys 7004 | -7/Scraptown | Visited Scrapoid Research Area 7033 | -7/Scraptown | Visited Derelict Rescue Squad 7060 | -7/Scraptown | Visited Scrap Suit Storage 7084 | -7/Scraptown | Visited LU-1G1's Boring Crew 7133 | -7/Scraptown | Visited Scrapoid Pod Storage 7152 | -7/Scraptown | Visited Curators Association 7192 | -7/Scraptown | Released all parts (4) 7192 | -7/Scraptown | Identified Decoy Drone Bay 7308 | -7/Scraptown | Found Surveybot 17 Chip 7358 | -7/Scraptown | Learned location of Storage (-7) 7358 | -7/Scraptown | Learned location of Extension (-5) 7358 | -7/Scraptown | Learned location of Archives (-5) 7358 | -7/Scraptown | Learned 12 Factory zone layouts 7358 | -7/Scraptown | Learned 24 Factory zone layouts 7358 | -7/Scraptown | Learned 8 Research zone layouts 7358 | -7/Scraptown | Learned 12 Research zone layouts 7358 | -7/Scraptown | Learned 4 Storage zone layouts 7358 | -7/Scraptown | Learned 16 Lower Caves zone layouts 7358 | -7/Scraptown | Learned 24 Upper Caves zone layouts 7358 | -7/Scraptown | Learned location of 3 exits from Factory 7358 | -7/Scraptown | Learned location of 2 exits from Research 7358 | -7/Scraptown | Identified exit to Factory 7568 | -7/Scraptown | Delivered Scrap Shield to a Scientist 7644 | -7/Scraptown | Discovered exit to Factory (range 5) 7762 | -7/Scraptown | Entered Cyclist Reading Room 7814 | -7/Scraptown | Warned about trapping Scraptown 7858 | -7/Scraptown | Self-destructed Last Messages --------------- a "mechseed" and fed matter to grow new functions, usually not of the friendly variety. >>Record "UC/??-???" These are just the Unchained I've managed to collect reliable data on. If you come across any new or updated details, let me know. --Soloparser 07786_ Acquired Vortex Trap. 07812_ Dropped Vortex Trap. 07813_ Installed Vortex Trap. 07814_ ANNOUNCEMENT: Tracking potentially hostile trap installation. GZ-5GY(g): I'm glad we have the Federation Council. Even rule under a benevolent dictator is still subject to all the dangers of concentrating too much power in one figure. You know who I mean. 07844_ Acquired Decoy Drone Bay. Map ----- +----------------------------------------------------+ | ##"" ""#??????####### ########### ####?#### | | ##### ##########???????##### ########### ######### | | #???????#"""" """"""""""" """"""""" | | #???????#" | | #???????#" | | #???????#" | | #???????#" | | ###### #???#####" | | ?????# #???#"""" """""""""""""""""""" | | ?????# #???#"""" """""""""""""""""""" | | ###??# #???#"""" ""###### ########## | | ??# #???#"""" ""#??? ???????? | | " ## #???#"""" ""#?? ??????? | | "" ## ###?#"""" ""#? "" "" ?????? | | " ## ""#"#""""p ""# "" "" ?????? | | " ## """"#"""" l ""# " ? ?##### | | " " ## ""#######" "" "" | | " " ## ###?????#" "" "" | | " ## #########" ""# " " ##### | | " " ## ""# "" ""??????? | | " " ## ""#? "" "" ??????? | | " ## ]* ""#?? ??????? | | ###### !!!! ""#??? ???????? | | ###### TT |!= = ""###### ########## | | TT ]! """""""""""""""""""" | | = @ """""""""""""""""""" | | p &&! | | | | r r | | #""""#" r | | #????#" | | #????#"""""" """"""""""" """"""" | | ######## ### ####????####### ########### ####### | | ?# # #????????#" "##" "#??# | | ?# # #????????##"" ""###" "#??# | | ?# # #?????????#!" "*#?#" "#??# | | ?# # #????????##"" ""###" ! "#??# | | ?# """"" # #????????#" "##""""""" #??# | | ?# """"" # #????????##"" ""############??# | | ?# """"" # #?????????#=" "!#?????????????# | | ?# # #?????????#"" ""#?????????????# | | ?# # #????????#" """ "#????????????# | | ?#??######## #????????#### "&" ####????????????# | | ???????????# #???????????#"###"#???????????????# | | ??????###### #???????????###?###???????????????? | | ????"""""""" #????????????????????############## | | ???""" """"" #???????????????#"""?#"""##"""##""" | | ??""" " "" #??????????""" ## ""##|""##" "##""" | | #??????????""" | | ??" "" "" " #??????????""" | +----------------------------------------------------+ Best States ------------- Heat Dissipation 25 Energy Generation 15 Energy Capacity 265 Matter Stores 300 Matter Capacity 300 Sight Range 16 Terrain Scan Density 10 Evasion (%) 63 Recoil Reduction 2 Item Schematics ----------------- Hcp. Storage Unit | -10/Materials | Hacked Robot Schematics ------------------ None Fabricated ------------ Nothing Repaired ---------- Wheel | 75% | -10/Materials Alien Tech Used ----------------- None Achievements -------------- None Challenges ------------ None Game ------ Seed JammingColdArchive Manual? 0 Play Time 01:08:39 Cumulative 412.8 hours Start 2025.08.29 @ 13:49:06 End 2025.08.29 @ 17:42:15 Sessions 3 Manual Loads 0 Difficulty Rogue Special Mode None Game No. 135 Rogue 133 Adventurer 0 Explorer 2 Win Type - Total 10 Types 8/0/1/1/0/0/0/0/0/0 Lore% 84 Gallery% 77 Achievement% 76 Wizard Run 0 Options --------- Layout 2 ASCII 0 Keyboard 1 Movement Numpad Keybinds 0 Fullscreen 1 Font 24/Smallcaps Map View 50x44 Zoom Use 0% Tactical HUD 1 Map Filters NONE Filters NONE Steam 0 RUN: 588cabb5-8bfb-4dec-93ae-fe60fb7d77bc